[Event "*** Titled Tuesday Blitz"]
[Site "Chess.com"]
[Date "2021.03.02"]
[Round "7"]
[White "PrinceMurad09"]
[Black "Firegrizzly"]
[Result "1-0"]
[WhiteElo "2551"]
[BlackElo "2660"]
[TimeControl "180+1"]
[EndTime "11:18:44 PST"]
[Termination "PrinceMurad09 won by resignation"]

1. e4 {[%clk 0:03:00.9]} 1... c5 {[%clk 0:02:55.8]} 2. Nf3 {[%clk 0:03:01.2]}
2... d6 {[%clk 0:02:56.1]} 3. d4 {[%clk 0:03:01.4]} 3... cxd4 {[%clk 0:02:56.7]}
4. Nxd4 {[%clk 0:03:02.3]} 4... Nf6 {[%clk 0:02:56.9]} 5. Nc3 {[%clk 0:03:02.7]}
5... Nc6 {[%clk 0:02:57.4]} 6. Nb3 {[%clk 0:02:59.8]} 6... e6 {[%clk 0:02:51.1]}
7. Be2 {[%clk 0:02:59.9]} 7... a6 {[%clk 0:02:51.5]} 8. a4 {[%clk 0:02:57]} 8...
Be7 {[%clk 0:02:52.1]} 9. O-O {[%clk 0:02:57]} 9... O-O {[%clk 0:02:52.5]} 10.
f4 {[%clk 0:02:55.3]} 10... Qc7 {[%clk 0:02:52]} 11. Bf3 {[%clk 0:02:55.1]}
11... b6 {[%clk 0:02:41.7]} 12. Kh1 {[%clk 0:02:55.3]} 12... Bb7 {[%clk
0:02:41]} 13. Qe1 {[%clk 0:02:55.7]} 13... Rfe8 {[%clk 0:02:39.5]} 14. Be3
{[%clk 0:02:43.6]} 14... Nb4 {[%clk 0:02:36.7]} 15. Qf2 {[%clk 0:02:41.4]} 15...
Nd7 {[%clk 0:02:33.8]} 16. f5 {[%clk 0:02:28.6]} 16... e5 {[%clk 0:02:31.3]} 17.
Rad1 {[%clk 0:02:23.7]} 17... Rac8 {[%clk 0:02:30.3]} 18. g4 {[%clk 0:02:18.1]}
18... Qd8 {[%clk 0:02:25.2]} 19. Rd2 {[%clk 0:02:03.3]} 19... Nc5 {[%clk
0:02:16.1]} 20. Nxc5 {[%clk 0:01:51.2]} 20... bxc5 {[%clk 0:02:17]} 21. Rfd1
{[%clk 0:01:37.1]} 21... h6 {[%clk 0:02:09.8]} 22. Qg1 {[%clk 0:01:21.3]} 22...
Ba8 {[%clk 0:01:50.1]} 23. h4 {[%clk 0:01:16.1]} 23... d5 {[%clk 0:01:48.2]} 24.
exd5 {[%clk 0:01:04.3]} 24... Bxh4 {[%clk 0:01:43.7]} 25. Qg2 {[%clk 0:00:49.6]}
25... e4 {[%clk 0:01:40.7]} 26. Nxe4 {[%clk 0:00:36.9]} 26... f6 {[%clk
0:01:28.3]} 27. c4 {[%clk 0:00:35.9]} 27... Bg5 {[%clk 0:01:27.1]} 28. Nxg5
{[%clk 0:00:34.4]} 28... hxg5 {[%clk 0:01:23.4]} 29. Bf2 {[%clk 0:00:31.2]}
29... Kf7 {[%clk 0:01:21.3]} 30. Kg1 {[%clk 0:00:27.5]} 30... Qd6 {[%clk
0:01:18.1]} 31. Bg3 {[%clk 0:00:27]} 31... Qd7 {[%clk 0:01:18.5]} 32. b3 {[%clk
0:00:26.4]} 32... Re3 {[%clk 0:01:18]} 33. Re2 {[%clk 0:00:25.2]} 33... Rce8
{[%clk 0:01:18.1]} 34. Rde1 {[%clk 0:00:25.2]} 34... Nc2 {[%clk 0:01:10.8]} 35.
Rxe3 {[%clk 0:00:16.1]} 35... Rxe3 {[%clk 0:00:50.8]} 36. Rxe3 {[%clk
0:00:14.8]} 36... Nxe3 {[%clk 0:00:50.5]} 37. Qe2 {[%clk 0:00:14.9]} 37... Qe8
{[%clk 0:00:48.3]} 38. Bf2 {[%clk 0:00:14.8]} 38... Nxg4 {[%clk 0:00:40.1]} 39.
Bxg4 {[%clk 0:00:13.8]} 39... Qxe2 {[%clk 0:00:38]} 40. Bxe2 {[%clk 0:00:14.7]}
40... g6 {[%clk 0:00:38.5]} 41. Bg4 {[%clk 0:00:13.2]} 41... Bb7 {[%clk
0:00:37.4]} 42. Bxc5 {[%clk 0:00:13.1]} 42... Kg7 {[%clk 0:00:34]} 43. fxg6
{[%clk 0:00:13.3]} 43... Kxg6 {[%clk 0:00:33.7]} 44. d6 {[%clk 0:00:13.6]} 44...
Bc6 {[%clk 0:00:32.6]} 45. Bf3 {[%clk 0:00:12.7]} 45... Bd7 {[%clk 0:00:33.5]}
46. b4 {[%clk 0:00:12.4]} 46... f5 {[%clk 0:00:33.6]} 47. b5 {[%clk 0:00:12.6]}
47... axb5 {[%clk 0:00:33.3]} 48. axb5 {[%clk 0:00:13]} 48... g4 {[%clk
0:00:34.2]} 49. Bc6 {[%clk 0:00:13.3]} 49... Be6 {[%clk 0:00:34.6]} 50. d7
{[%clk 0:00:13.7]} 50... Bxd7 {[%clk 0:00:34.8]} 51. Bxd7 {[%clk 0:00:14.6]}
51... f4 {[%clk 0:00:35.3]} 52. Bxg4 {[%clk 0:00:14.3]} 1-0

[Event "*** Titled Tuesday Blitz"]
[Site "Chess.com"]
[Date "2021.03.02"]
[Round "7"]
[White "Sjakkerntobi"]
[Black "GregShahade"]
[Result "0-1"]
[WhiteElo "2340"]
[BlackElo "2632"]
[TimeControl "180+1"]
[EndTime "11:18:45 PST"]
[Termination "GregShahade won by checkmate"]

1. e4 {[%clk 0:03:00.9]} 1... e5 {[%clk 0:03:00.1]} 2. Nf3 {[%clk 0:03:01]} 2...
Nc6 {[%clk 0:03:00.7]} 3. Bb5 {[%clk 0:03:01.6]} 3... a6 {[%clk 0:03:01.2]} 4.
Ba4 {[%clk 0:03:02.2]} 4... Nf6 {[%clk 0:03:01.3]} 5. O-O {[%clk 0:03:02.8]}
5... Be7 {[%clk 0:03:01.7]} 6. Re1 {[%clk 0:03:02.9]} 6... b5 {[%clk 0:03:02.4]}
7. Bb3 {[%clk 0:03:03.4]} 7... O-O {[%clk 0:03:03.2]} 8. a4 {[%clk 0:03:04.1]}
8... Bb7 {[%clk 0:03:03.7]} 9. d3 {[%clk 0:03:01.8]} 9... d6 {[%clk 0:03:04.2]}
10. Nbd2 {[%clk 0:03:00.9]} 10... Nd7 {[%clk 0:03:04.7]} 11. Nf1 {[%clk
0:03:00.9]} 11... Nc5 {[%clk 0:03:04.6]} 12. Ba2 {[%clk 0:03:00.5]} 12... Nxa4
{[%clk 0:03:03.1]} 13. Ng3 {[%clk 0:03:00.6]} 13... Nb4 {[%clk 0:02:55.6]} 14.
Bb1 {[%clk 0:02:58.8]} 14... c5 {[%clk 0:02:51.5]} 15. c3 {[%clk 0:02:58.6]}
15... Nc6 {[%clk 0:02:49.5]} 16. d4 {[%clk 0:02:54.5]} 16... Re8 {[%clk
0:02:40.4]} 17. Nf5 {[%clk 0:02:53.8]} 17... Bf8 {[%clk 0:02:33.7]} 18. Ng5
{[%clk 0:02:53.4]} 18... h6 {[%clk 0:02:20.9]} 19. Nf3 {[%clk 0:02:44]} 19...
Bc8 {[%clk 0:01:43.3]} 20. Ba2 {[%clk 0:02:35.2]} 20... c4 {[%clk 0:01:38.8]}
21. Ne3 {[%clk 0:02:21.4]} 21... Nb6 {[%clk 0:01:33.8]} 22. b3 {[%clk
0:02:18.7]} 22... exd4 {[%clk 0:01:29.4]} 23. Nxd4 {[%clk 0:02:17.2]} 23... Nxd4
{[%clk 0:01:19.3]} 24. Qxd4 {[%clk 0:02:18.1]} 24... Bb7 {[%clk 0:01:19.2]} 25.
f3 {[%clk 0:02:13.8]} 25... d5 {[%clk 0:01:15.4]} 26. exd5 {[%clk 0:02:08.7]}
26... Rc8 {[%clk 0:01:02.7]} 27. Bd2 {[%clk 0:01:29.3]} 27... Bc5 {[%clk
0:01:01.3]} 28. Qg4 {[%clk 0:01:25.3]} 28... Nxd5 {[%clk 0:00:59.6]} 29. Rad1
{[%clk 0:00:54.6]} 29... Nxe3 {[%clk 0:00:54.1]} 30. Bxe3 {[%clk 0:00:54.6]}
30... Bxe3+ {[%clk 0:00:49.7]} 31. Kh1 {[%clk 0:00:47.5]} 31... Qg5 {[%clk
0:00:49.8]} 32. Qxg5 {[%clk 0:00:36.7]} 32... Bxg5 {[%clk 0:00:46.9]} 33. Rxe8+
{[%clk 0:00:37.6]} 33... Rxe8 {[%clk 0:00:47.1]} 34. bxc4 {[%clk 0:00:38.5]}
34... Re2 {[%clk 0:00:37.7]} 35. Bb3 {[%clk 0:00:35.7]} 35... Rb2 {[%clk
0:00:37.6]} 36. h4 {[%clk 0:00:26.5]} 36... Bf6 {[%clk 0:00:36.7]} 37. Rd7
{[%clk 0:00:22.5]} 37... Rxb3 {[%clk 0:00:30.4]} 38. Rxb7 {[%clk 0:00:22.7]}
38... bxc4 {[%clk 0:00:30.5]} 39. Ra7 {[%clk 0:00:23.3]} 39... Rxc3 {[%clk
0:00:27.2]} 40. Rxa6 {[%clk 0:00:23.5]} 40... Rc1+ {[%clk 0:00:27.4]} 41. Kh2
{[%clk 0:00:23.9]} 41... c3 {[%clk 0:00:28]} 42. Rc6 {[%clk 0:00:23.8]} 42...
Bxh4 {[%clk 0:00:27]} 43. Kh3 {[%clk 0:00:23.3]} 43... Bf6 {[%clk 0:00:26.7]}
44. Kg4 {[%clk 0:00:24.2]} 44... c2 {[%clk 0:00:27]} 45. g3 {[%clk 0:00:22.6]}
45... g6 {[%clk 0:00:24.4]} 46. f4 {[%clk 0:00:22.4]} 46... Kg7 {[%clk
0:00:24.4]} 47. f5 {[%clk 0:00:21.8]} 47... h5+ {[%clk 0:00:24.5]} 48. Kf4
{[%clk 0:00:22]} 48... Rf1+ {[%clk 0:00:24.6]} 49. Ke3 {[%clk 0:00:22.1]} 49...
c1=Q+ {[%clk 0:00:24.2]} 50. Rxc1 {[%clk 0:00:22.6]} 50... Rxc1 {[%clk
0:00:24.7]} 51. fxg6 {[%clk 0:00:23.1]} 51... fxg6 {[%clk 0:00:25.1]} 52. Kf3
{[%clk 0:00:23.8]} 52... Rc4 {[%clk 0:00:25.4]} 53. Kg2 {[%clk 0:00:24.6]} 53...
Rg4 {[%clk 0:00:26.2]} 54. Kh3 {[%clk 0:00:25.5]} 54... Kf7 {[%clk 0:00:26.8]}
55. Kg2 {[%clk 0:00:25.7]} 55... Ke6 {[%clk 0:00:27.7]} 56. Kh3 {[%clk
0:00:26.6]} 56... Kf5 {[%clk 0:00:28.2]} 57. Kg2 {[%clk 0:00:27.5]} 57... Ke4
{[%clk 0:00:28.9]} 58. Kh3 {[%clk 0:00:28.4]} 58... Be5 {[%clk 0:00:28.7]} 59.
Kh2 {[%clk 0:00:29.3]} 59... Ke3 {[%clk 0:00:29.1]} 60. Kh1 {[%clk 0:00:29.3]}
60... Kf2 {[%clk 0:00:27.9]} 61. Kh2 {[%clk 0:00:30.2]} 61... Rh4# {[%clk
0:00:28.4]} 0-1

[Event "*** Titled Tuesday Blitz"]
[Site "Chess.com"]
[Date "2021.03.02"]
[Round "7"]
[White "Sibelephant"]
[Black "KuzubovYuriy"]
[Result "1-0"]
[WhiteElo "3068"]
[BlackElo "2920"]
[TimeControl "180+1"]
[EndTime "11:18:46 PST"]
[Termination "Sibelephant won on time"]

1. e4 {[%clk 0:02:59.5]} 1... c5 {[%clk 0:02:59.3]} 2. Nc3 {[%clk 0:02:59.3]}
2... Nc6 {[%clk 0:02:58.2]} 3. g3 {[%clk 0:02:59.9]} 3... g6 {[%clk 0:02:57.1]}
4. Bg2 {[%clk 0:03:00.1]} 4... Bg7 {[%clk 0:02:57.8]} 5. d3 {[%clk 0:03:00.6]}
5... d6 {[%clk 0:02:56.9]} 6. Be3 {[%clk 0:03:00.9]} 6... e6 {[%clk 0:02:56.7]}
7. Qd2 {[%clk 0:03:00.9]} 7... Rb8 {[%clk 0:02:55.5]} 8. Nge2 {[%clk 0:03:00.3]}
8... Nd4 {[%clk 0:02:55.4]} 9. O-O {[%clk 0:02:58.9]} 9... b5 {[%clk 0:02:46.4]}
10. b4 {[%clk 0:02:20.4]} 10... a5 {[%clk 0:02:26.6]} 11. a3 {[%clk 0:02:16.7]}
11... Nxe2+ {[%clk 0:02:04.2]} 12. Nxe2 {[%clk 0:02:16.3]} 12... cxb4 {[%clk
0:01:59.8]} 13. axb4 {[%clk 0:02:15.5]} 13... a4 {[%clk 0:02:00]} 14. c4 {[%clk
0:02:05.2]} 14... Bd7 {[%clk 0:01:43.3]} 15. Ra3 {[%clk 0:01:39.1]} 15... Ne7
{[%clk 0:01:38.9]} 16. Nc3 {[%clk 0:01:10.7]} 16... bxc4 {[%clk 0:01:30.4]} 17.
dxc4 {[%clk 0:01:10.9]} 17... Nc6 {[%clk 0:00:55.4]} 18. Qxd6 {[%clk 0:00:33.8]}
18... Bf8 {[%clk 0:00:41.6]} 19. Qd2 {[%clk 0:00:33.7]} 19... Bxb4 {[%clk
0:00:29.2]} 20. Rxa4 {[%clk 0:00:34.1]} 20... Ne5 {[%clk 0:00:25.2]} 21. Ra7
{[%clk 0:00:18.6]} 21... O-O {[%clk 0:00:16.4]} 22. Bh6 {[%clk 0:00:18.7]} 22...
Bc6 {[%clk 0:00:14]} 23. Qc2 {[%clk 0:00:10.6]} 23... Re8 {[%clk 0:00:11.1]} 24.
Nb5 {[%clk 0:00:10.9]} 24... Bxb5 {[%clk 0:00:08.3]} 25. cxb5 {[%clk 0:00:11.3]}
25... Qb6 {[%clk 0:00:07.9]} 26. Qa2 {[%clk 0:00:05.7]} 26... Ng4 {[%clk
0:00:05.7]} 27. Bf4 {[%clk 0:00:04.3]} 27... Qxb5 {[%clk 0:00:04.5]} 28. Bxb8
{[%clk 0:00:04.1]} 28... Qxb8 {[%clk 0:00:04.7]} 29. h3 {[%clk 0:00:04.4]} 29...
Bc5 {[%clk 0:00:02.7]} 30. Ra5 {[%clk 0:00:02.6]} 30... Bxf2+ {[%clk 0:00:02.8]}
31. Rxf2 {[%clk 0:00:03.5]} 31... Nxf2 {[%clk 0:00:02.9]} 32. Qxf2 {[%clk
0:00:04.4]} 32... Qb1+ {[%clk 0:00:03]} 33. Kh2 {[%clk 0:00:04.2]} 33... Rc8
{[%clk 0:00:03.4]} 34. Ra7 {[%clk 0:00:04.4]} 34... Rc2 {[%clk 0:00:03.1]} 35.
Qxf7+ {[%clk 0:00:04.2]} 1-0

[Event "*** Titled Tuesday Blitz"]
[Site "Chess.com"]
[Date "2021.03.02"]
[Round "7"]
[White "aljado"]
[Black "QuintilianoR"]
[Result "0-1"]
[WhiteElo "2139"]
[BlackElo "2687"]
[TimeControl "180+1"]
[EndTime "11:18:47 PST"]
[Termination "QuintilianoR won on time"]

1. e4 {[%clk 0:03:00.9]} 1... c5 {[%clk 0:02:59.2]} 2. Nf3 {[%clk 0:03:00.2]}
2... d6 {[%clk 0:02:59.3]} 3. c3 {[%clk 0:02:58.5]} 3... Nf6 {[%clk 0:02:58.8]}
4. Bc4 {[%clk 0:02:57.9]} 4... Nc6 {[%clk 0:02:56.1]} 5. Qe2 {[%clk 0:02:56.4]}
5... Bg4 {[%clk 0:02:46.1]} 6. h3 {[%clk 0:02:53.9]} 6... Bxf3 {[%clk
0:02:44.9]} 7. Qxf3 {[%clk 0:02:52.9]} 7... e6 {[%clk 0:02:45.8]} 8. O-O {[%clk
0:02:50.5]} 8... Be7 {[%clk 0:02:46.1]} 9. Bb3 {[%clk 0:02:50]} 9... O-O {[%clk
0:02:46.2]} 10. Rd1 {[%clk 0:02:49.4]} 10... Rc8 {[%clk 0:02:36.4]} 11. d3
{[%clk 0:02:44.8]} 11... b5 {[%clk 0:02:34]} 12. Bg5 {[%clk 0:02:36.3]} 12...
Nd7 {[%clk 0:02:30.8]} 13. Bxe7 {[%clk 0:02:34.7]} 13... Qxe7 {[%clk 0:02:31.7]}
14. Nd2 {[%clk 0:02:31.5]} 14... Nb6 {[%clk 0:02:16.7]} 15. Nf1 {[%clk
0:02:28.7]} 15... c4 {[%clk 0:02:11.1]} 16. dxc4 {[%clk 0:02:26.3]} 16... bxc4
{[%clk 0:02:12]} 17. Bc2 {[%clk 0:02:25.1]} 17... Rb8 {[%clk 0:02:03.5]} 18. Ne3
{[%clk 0:02:22.5]} 18... Rfc8 {[%clk 0:02:00.2]} 19. Qe2 {[%clk 0:02:15.4]}
19... Ne5 {[%clk 0:01:37.8]} 20. f4 {[%clk 0:02:07.8]} 20... Ng6 {[%clk
0:01:36.4]} 21. Qf3 {[%clk 0:02:04.3]} 21... Qc7 {[%clk 0:01:31.5]} 22. Qg3
{[%clk 0:01:58.6]} 22... d5 {[%clk 0:01:28.2]} 23. exd5 {[%clk 0:01:54.9]} 23...
Nxd5 {[%clk 0:01:09]} 24. Nxd5 {[%clk 0:01:40.9]} 24... exd5 {[%clk 0:01:09.9]}
25. Rxd5 {[%clk 0:01:31.6]} 25... Nxf4 {[%clk 0:01:05]} 26. Qh4 {[%clk
0:00:59.1]} 26... Nxd5 {[%clk 0:00:38.1]} 27. Qxh7+ {[%clk 0:00:57.8]} 27... Kf8
{[%clk 0:00:37.9]} 28. Re1 {[%clk 0:00:43.5]} 28... Qc5+ {[%clk 0:00:18]} 29.
Kh1 {[%clk 0:00:37]} 29... Ne3 {[%clk 0:00:18.5]} 30. Qh8+ {[%clk 0:00:31]}
30... Ke7 {[%clk 0:00:18.3]} 31. Qh4+ {[%clk 0:00:24.1]} 31... g5 {[%clk
0:00:17.8]} 32. Qe4+ {[%clk 0:00:22.6]} 32... Kf8 {[%clk 0:00:17.9]} 33. Qxe3
{[%clk 0:00:17]} 33... Qxe3 {[%clk 0:00:17.3]} 34. Rxe3 {[%clk 0:00:16.5]} 34...
Rxb2 {[%clk 0:00:18.2]} 35. Bf5 {[%clk 0:00:14.5]} 35... Re8 {[%clk 0:00:18.2]}
36. Rg3 {[%clk 0:00:13.6]} 36... f6 {[%clk 0:00:18]} 37. h4 {[%clk 0:00:13.5]}
37... Re1+ {[%clk 0:00:15.8]} 38. Kh2 {[%clk 0:00:11.6]} 38... gxh4 {[%clk
0:00:16.7]} 39. Rg4 {[%clk 0:00:08.7]} 39... Ree2 {[%clk 0:00:16.3]} 40. Rg6
{[%clk 0:00:03.2]} 40... Kf7 {[%clk 0:00:15.9]} 0-1

[Event "*** Titled Tuesday Blitz"]
[Site "Chess.com"]
[Date "2021.03.02"]
[Round "7"]
[White "ApoIogiA"]
[Black "dhaessel"]
[Result "0-1"]
[WhiteElo "2188"]
[BlackElo "1964"]
[TimeControl "180+1"]
[EndTime "11:18:47 PST"]
[Termination "dhaessel won by checkmate"]

1. d4 {[%clk 0:03:00.9]} 1... Nf6 {[%clk 0:02:59.1]} 2. c4 {[%clk 0:02:58.4]}
2... g6 {[%clk 0:02:59.2]} 3. f3 {[%clk 0:02:57.9]} 3... Nc6 {[%clk 0:02:49.6]}
4. e4 {[%clk 0:02:57.5]} 4... e5 {[%clk 0:02:42.2]} 5. d5 {[%clk 0:02:55.7]}
5... Nd4 {[%clk 0:02:42.1]} 6. Ne2 {[%clk 0:02:47.4]} 6... c5 {[%clk 0:02:39.9]}
7. dxc6 {[%clk 0:02:47.2]} 7... dxc6 {[%clk 0:02:39]} 8. Be3 {[%clk 0:02:38.2]}
8... c5 {[%clk 0:02:36.6]} 9. Nbc3 {[%clk 0:02:37.9]} 9... Bg7 {[%clk
0:02:34.4]} 10. Nd5 {[%clk 0:02:37.4]} 10... Nxd5 {[%clk 0:02:23.7]} 11. cxd5
{[%clk 0:02:36.6]} 11... O-O {[%clk 0:02:19.9]} 12. b4 {[%clk 0:02:31.8]} 12...
b6 {[%clk 0:02:09.3]} 13. bxc5 {[%clk 0:02:29.3]} 13... bxc5 {[%clk 0:02:09.5]}
14. Qd2 {[%clk 0:02:29.3]} 14... Rb8 {[%clk 0:02:03.1]} 15. Rc1 {[%clk
0:02:26.9]} 15... Qd6 {[%clk 0:01:52.5]} 16. Kf2 {[%clk 0:02:24.5]} 16... Ba6
{[%clk 0:01:48.6]} 17. Nc3 {[%clk 0:02:17.1]} 17... f5 {[%clk 0:01:38.1]} 18.
Bxa6 {[%clk 0:01:53.7]} 18... Qxa6 {[%clk 0:01:37.1]} 19. Rhd1 {[%clk
0:01:41.7]} 19... Rb4 {[%clk 0:01:34.7]} 20. Kg1 {[%clk 0:01:32.2]} 20... Rfb8
{[%clk 0:01:33.5]} 21. Rb1 {[%clk 0:01:04]} 21... Qc4 {[%clk 0:01:32.7]} 22.
Rxb4 {[%clk 0:00:57.9]} 22... cxb4 {[%clk 0:01:15.9]} 23. Bxd4 {[%clk
0:00:47.6]} 23... exd4 {[%clk 0:01:13.7]} 24. Ne2 {[%clk 0:00:47.7]} 24... b3
{[%clk 0:01:07.3]} 25. axb3 {[%clk 0:00:46.3]} 25... Rxb3 {[%clk 0:01:07]} 26.
Nxd4 {[%clk 0:00:45.9]} 26... fxe4 {[%clk 0:01:01]} 27. fxe4 {[%clk 0:00:34.9]}
27... Rb4 {[%clk 0:00:54.5]} 28. Nc6 {[%clk 0:00:18.2]} 28... Rb2 {[%clk
0:00:52.1]} 29. Qd3 {[%clk 0:00:09.7]} 29... Qc5+ {[%clk 0:00:49.8]} 30. Kh1
{[%clk 0:00:09.1]} 30... Qf2 {[%clk 0:00:47.1]} 31. Qf1 {[%clk 0:00:09.2]} 31...
Qe3 {[%clk 0:00:33.6]} 32. d6 {[%clk 0:00:08.6]} 32... Rd2 {[%clk 0:00:24.1]}
33. d7 {[%clk 0:00:07.8]} 33... Bf6 {[%clk 0:00:21.2]} 34. Rxd2 {[%clk
0:00:05.2]} 34... Qxd2 {[%clk 0:00:20.6]} 35. e5 {[%clk 0:00:04.7]} 35... Bh4
{[%clk 0:00:18.2]} 36. e6 {[%clk 0:00:04.2]} 36... Qd6 {[%clk 0:00:16.6]} 37.
Qf7+ {[%clk 0:00:03]} 37... Kh8 {[%clk 0:00:16.2]} 38. Qe8+ {[%clk 0:00:03.5]}
38... Kg7 {[%clk 0:00:16.1]} 39. Qf7+ {[%clk 0:00:04]} 39... Kh6 {[%clk
0:00:15.6]} 40. Qf3 {[%clk 0:00:04.5]} 40... Qxe6 {[%clk 0:00:13.5]} 41. d8=Q
{[%clk 0:00:04.4]} 41... Qe1+ {[%clk 0:00:13]} 42. Qf1 {[%clk 0:00:03.8]} 42...
Qxf1# {[%clk 0:00:13.3]} 0-1

[Event "*** Titled Tuesday Blitz"]
[Site "Chess.com"]
[Date "2021.03.02"]
[Round "7"]
[White "suneebaker"]
[Black "ObligatePawnivore"]
[Result "1-0"]
[WhiteElo "2158"]
[BlackElo "1827"]
[TimeControl "180+1"]
[EndTime "11:18:47 PST"]
[Termination "suneebaker won on time"]

1. e4 {[%clk 0:03:00.9]} 1... e6 {[%clk 0:02:59.9]} 2. Nf3 {[%clk 0:03:00.4]}
2... d5 {[%clk 0:02:59.5]} 3. Nc3 {[%clk 0:03:00.3]} 3... Nf6 {[%clk 0:02:58.6]}
4. e5 {[%clk 0:02:59.8]} 4... Nfd7 {[%clk 0:02:58.2]} 5. d4 {[%clk 0:02:59.7]}
5... c5 {[%clk 0:02:58.5]} 6. dxc5 {[%clk 0:02:58.6]} 6... Nc6 {[%clk 0:02:56]}
7. Bf4 {[%clk 0:02:58.3]} 7... Bxc5 {[%clk 0:02:43.3]} 8. Bd3 {[%clk 0:02:57.9]}
8... f6 {[%clk 0:02:42.8]} 9. exf6 {[%clk 0:02:56.3]} 9... Nxf6 {[%clk
0:02:43.7]} 10. O-O {[%clk 0:02:55]} 10... O-O {[%clk 0:02:43.4]} 11. Ne5 {[%clk
0:02:54.7]} 11... Bd6 {[%clk 0:02:14.6]} 12. Qe2 {[%clk 0:02:49.2]} 12... Nb4
{[%clk 0:01:45.6]} 13. Rae1 {[%clk 0:02:41.1]} 13... a6 {[%clk 0:01:39.8]} 14.
a3 {[%clk 0:02:32.9]} 14... Nxd3 {[%clk 0:01:38.8]} 15. Nxd3 {[%clk 0:02:32.2]}
15... Bxf4 {[%clk 0:00:48.7]} 16. Nxf4 {[%clk 0:02:31.6]} 16... Ne4 {[%clk
0:00:48.5]} 17. Nxe4 {[%clk 0:02:22.4]} 17... Rxf4 {[%clk 0:00:47.2]} 18. Nc5
{[%clk 0:02:14.3]} 18... Qd6 {[%clk 0:00:40]} 19. b4 {[%clk 0:01:59.4]} 19...
Rf6 {[%clk 0:00:32.1]} 20. f4 {[%clk 0:01:54.7]} 20... b6 {[%clk 0:00:27]} 21.
Nd3 {[%clk 0:01:53.4]} 21... Bd7 {[%clk 0:00:26.5]} 22. Qe5 {[%clk 0:01:42.9]}
22... Qxe5 {[%clk 0:00:20.6]} 23. Nxe5 {[%clk 0:01:42]} 23... Bb5 {[%clk
0:00:19.3]} 24. Rf2 {[%clk 0:01:38.6]} 24... Rc8 {[%clk 0:00:19.3]} 25. g3
{[%clk 0:01:28.2]} 25... Rc3 {[%clk 0:00:18.9]} 26. Ra1 {[%clk 0:01:19.1]} 26...
Rf8 {[%clk 0:00:16.5]} 27. a4 {[%clk 0:01:17.2]} 27... Bc4 {[%clk 0:00:14.9]}
28. Nd7 {[%clk 0:01:09.3]} 28... Rc8 {[%clk 0:00:12.6]} 29. Nxb6 {[%clk
0:01:08.3]} 29... Rc6 {[%clk 0:00:10.1]} 30. Nd7 {[%clk 0:00:55.6]} 30... d4
{[%clk 0:00:07.2]} 31. Ne5 {[%clk 0:00:54.3]} 31... Rc7 {[%clk 0:00:06]} 32. Rd2
{[%clk 0:00:48.9]} 32... Bd5 {[%clk 0:00:05.9]} 33. b5 {[%clk 0:00:39.4]} 33...
axb5 {[%clk 0:00:05.2]} 34. axb5 {[%clk 0:00:39.2]} 34... Rxc2 {[%clk
0:00:06.1]} 35. Rxc2 {[%clk 0:00:32.4]} 35... Rxc2 {[%clk 0:00:05.1]} 36. b6
{[%clk 0:00:27]} 36... Rg2+ {[%clk 0:00:04.7]} 37. Kf1 {[%clk 0:00:26.9]} 37...
Rxh2 {[%clk 0:00:03.3]} 38. Ra7 {[%clk 0:00:23.9]} 38... Rb2 {[%clk 0:00:01.9]}
39. Rd7 {[%clk 0:00:16.6]} 1-0

[Event "*** Titled Tuesday Blitz"]
[Site "Chess.com"]
[Date "2021.03.02"]
[Round "7"]
[White "Mbneu"]
[Black "Pintacara"]
[Result "1-0"]
[WhiteElo "2307"]
[BlackElo "2453"]
[TimeControl "180+1"]
[EndTime "11:18:48 PST"]
[Termination "Mbneu won by resignation"]

1. d4 {[%clk 0:03:00.9]} 1... Nf6 {[%clk 0:02:58.4]} 2. c4 {[%clk 0:03:01.2]}
2... d6 {[%clk 0:02:58.4]} 3. f4 {[%clk 0:02:59.9]} 3... g6 {[%clk 0:02:58.7]}
4. Nc3 {[%clk 0:02:57.2]} 4... Bg7 {[%clk 0:02:59]} 5. e4 {[%clk 0:02:56.8]}
5... O-O {[%clk 0:02:57.1]} 6. Nf3 {[%clk 0:02:57.2]} 6... e5 {[%clk 0:02:56.5]}
7. fxe5 {[%clk 0:02:55.9]} 7... dxe5 {[%clk 0:02:54.2]} 8. d5 {[%clk 0:02:56.5]}
8... Na6 {[%clk 0:02:49.6]} 9. Bd3 {[%clk 0:02:53.6]} 9... Nc5 {[%clk
0:02:47.6]} 10. Be3 {[%clk 0:02:52.8]} 10... Nxd3+ {[%clk 0:02:36.6]} 11. Qxd3
{[%clk 0:02:53.7]} 11... Nh5 {[%clk 0:02:31.1]} 12. O-O {[%clk 0:02:29.4]} 12...
Nf4 {[%clk 0:02:30.5]} 13. Bxf4 {[%clk 0:02:25.2]} 13... exf4 {[%clk 0:02:31.4]}
14. e5 {[%clk 0:02:25.5]} 14... Bf5 {[%clk 0:02:30.6]} 15. Qd4 {[%clk 0:02:23]}
15... g5 {[%clk 0:02:24.5]} 16. Rae1 {[%clk 0:02:18.3]} 16... Re8 {[%clk
0:02:23.9]} 17. h3 {[%clk 0:02:07.3]} 17... h6 {[%clk 0:02:18.3]} 18. Ne4 {[%clk
0:01:39.6]} 18... Qd7 {[%clk 0:02:10.7]} 19. Nf6+ {[%clk 0:01:34.2]} 19... Bxf6
{[%clk 0:02:10.1]} 20. exf6 {[%clk 0:01:34.5]} 20... Rxe1 {[%clk 0:02:10]} 21.
Rxe1 {[%clk 0:01:31.8]} 21... Re8 {[%clk 0:02:10.2]} 22. Rxe8+ {[%clk 0:01:16]}
22... Qxe8 {[%clk 0:02:11.1]} 23. Qe5 {[%clk 0:01:16.1]} 23... Qd7 {[%clk
0:01:56.2]} 24. Kh2 {[%clk 0:01:13.6]} 24... Kh7 {[%clk 0:01:45.7]} 25. Nd4
{[%clk 0:01:11.2]} 25... Kg6 {[%clk 0:01:43.7]} 26. c5 {[%clk 0:01:06.3]} 26...
Bb1 {[%clk 0:01:11.8]} 27. a3 {[%clk 0:00:48.9]} 27... Qd8 {[%clk 0:00:49.6]}
28. Nf3 {[%clk 0:00:35.2]} 28... Qxf6 {[%clk 0:00:45.2]} 29. Qxc7 {[%clk
0:00:33]} 29... Qxb2 {[%clk 0:00:41.2]} 30. Ne5+ {[%clk 0:00:27.4]} 30... Kf5
{[%clk 0:00:36.7]} 31. Qxf7+ {[%clk 0:00:26.2]} 31... Ke4 {[%clk 0:00:31.3]} 32.
Nf3 {[%clk 0:00:22.5]} 32... Ke3 {[%clk 0:00:27.2]} 33. Qe6+ {[%clk 0:00:20.6]}
33... Be4 {[%clk 0:00:25.9]} 34. d6 {[%clk 0:00:19]} 34... Qc2 {[%clk
0:00:05.4]} 35. d7 {[%clk 0:00:17.5]} 35... Kf2 {[%clk 0:00:05.8]} 36. d8=Q
{[%clk 0:00:13.2]} 36... Bxf3 {[%clk 0:00:06.3]} 37. Qd4+ {[%clk 0:00:12.5]}
37... Kf1 {[%clk 0:00:06.8]} 38. Qec4+ {[%clk 0:00:11.4]} 38... Be2 {[%clk
0:00:06.1]} 39. Qxc2 {[%clk 0:00:10.9]} 1-0